[Event "35th European Club Cup 2019"]
[Site "Ulcinj"]
[Date "2019.11.14"]
[Round "5.11"]
[White "Hanko, Pavol"]
[Black "Netzer, Jacques"]
[Result "1/2-1/2"]
[ECO "E92"]
[WhiteElo "2114"]
[BlackElo "2284"]
[Annotator "NA"]
[PlyCount "85"]
[EventDate "2019.11.10"]
[EventType "team-tourn"]
[EventCountry "MNE"]
[SourceTitle "playchess.com"]
[Source "ChessBase"]
[SourceQuality "1"]
[WhiteTeam "Inbest Dunajov"]
[BlackTeam "Mulhouse"]
[TimeControl "40/5400+30:1800+30"]

1. d4 {[%emt 0:00:00]} Nf6 {[%emt 0:00:00]} 2. Nf3 {[%emt 0:00:00]} g6 {[%emt 0:00:00]} 3. c4 {[%emt 0:00:20]} Bg7 {[%emt 0:00:00]} 4. Nc3 {[%emt 0:00:25]} O-O {[%emt 0:00:00]} 5. e4 {[%emt 0:00:17]} d6 {[%emt 0:00:00]} 6. Be2 {[%emt 0:00:31]} e5 {[%emt 0:00:05]} 7. Be3 {[%emt 0:01:14]} Ng4 {[%emt 0:00:31]} 8. Bg5 {[%emt 0:00:21]} f6 {[%emt 0:00:05]} 9. Bc1 {[%emt 0:01:08]} f5 {[%emt 0:00:10]} 10. dxe5 {[%emt 0:09:50]} Nxe5 {[%emt 0:01:57]} 11. Nxe5 {[%emt 0:00:28]} Bxe5 {[%emt 0:00:12]} 12. f4 {[%emt 0:00:40]} Bg7 {[%emt 0:05:26]} 13. exf5 {[%emt 0:04:33]} Bxf5 {[%emt 0:01:14]} 14. Qd5+ {[%emt 0:06:34]} Kh8 {[%emt 0:00:04]} 15. Qxb7 {[%emt 0:00:13]} Nd7 {[%emt 0:00:10]} 16. O-O {[%emt 0:01:00]} Nc5 {[%emt 0:05:51]} 17. Qd5 {[%emt 0:01:04]} Rb8 {[%emt 0:03:50]} 18. Be3 {[%emt 0:09:40]} Rxb2 {[%emt 0:17:59]} 19. Bd4 {[%emt 0:00:22]} Qe7 {[%emt 0:15:32]} 20. Bxg7+ {[%emt 0:08:12]} Qxg7 {[%emt 0:00:07]} 21. Rac1 {[%emt 0:00:16]} Bc8 {[%emt 0:22:41]} 22. g3 {[%emt 0:08:18]} Bb7 {[%emt 0:00:20]} 23. Qd1 {[%emt 0:00:19]} Re8 {[%emt 0:03:50]} 24. Bf3 {[%emt 0:03:45]} Bxf3 {[%emt 0:10:37]} 25. Rxf3 {[%emt 0:00:45]} Qf7 {[%emt 0:03:00]} 26. Qd4+ {[%emt 0:00:50]} Kg8 {[%emt 0:00:43]} 27. Rf2 {[%emt 0:00:58]} Rxf2 {[%emt 0:00:13]} 28. Kxf2 {[%emt 0:00:42]} Qe6 {[%emt 0:00:40]} 29. Rd1 {[%emt 0:04:03]} Ne4+ {[%emt 0:00:29]} 30. Nxe4 {[%emt 0:03:36]} Qxe4 {[%emt 0:00:04]} 31. Rd2 {[%emt 0:10:00]} Qe1+ {[%emt 0:01:16]} 32. Kg2 {[%emt 0:02:41]} Re2+ {[%emt 0:00:11]} 33. Rxe2 {[%emt 0:01:10]} Qxe2+ {[%emt 0:00:04]} 34. Kh3 {[%emt 0:00:23]} Qh5+ {[%emt 0:00:02]} 35. Kg2 {[%emt 0:00:14]} Qe2+ {[%emt 0:00:04]} 36. Kh3 {[%emt 0:00:15]} Qxa2 {[%emt 0:00:03]} 37. Qd5+ {[%emt 0:00:18]} Kf8 {[%emt 0:00:20]} 38. Qe6 {[%emt 0:00:17]} Qa5 {[%emt 0:08:05]} 39. Qf6+ {[%emt 0:01:54]} Ke8 {[%emt 0:01:40]} 40. Qe6+ {[%emt 0:00:00]} Kf8 {[%emt 0:00:00]} 41. Qf6+ {[%emt 0:03:07]} Kg8 {[%emt 0:04:34]} 42. Qe6+ {[%emt 0:01:57]} Kf8 {[%emt 0:00:32]} 43. Qf6+ 1/2-1/2

[Event "35th European Club Cup 2019"]
[Site "Ulcinj"]
[Date "2019.11.14"]
[Round "5.12"]
[White "Goganov, Aleksey"]
[Black "Kislinsky, Alexey"]
[Result "1/2-1/2"]
[ECO "A59"]
[WhiteElo "2565"]
[BlackElo "2448"]
[Annotator "ChessBase"]
[PlyCount "74"]
[EventDate "2019.11.10"]
[EventType "team-tourn"]
[EventCountry "MNE"]
[SourceTitle "playchess.com"]
[Source "ChessBase"]
[SourceQuality "1"]
[WhiteTeam "Mednyi Vsadnik"]
[BlackTeam "Lysa nad Labem"]
[TimeControl "40/5400+30:1800+30"]

1. d4 {[%emt 0:00:00]} Nf6 {[%emt 0:00:00]} 2. c4 {[%emt 0:00:00]} c5 {[%emt 0:00:16]} 3. d5 {[%emt 0:00:00]} b5 {[%emt 0:00:08]} 4. cxb5 {[%emt 0:00:00]} a6 {[%emt 0:00:03]} 5. bxa6 {[%emt 0:00:05]} g6 {[%emt 0:00:05]} 6. Nc3 {[%emt 0:00:04]} Bxa6 {[%emt 0:00:06]} 7. e4 {[%emt 0:00:08]} Bxf1 {[%emt 0:00:04]} 8. Kxf1 {[%emt 0:00:04]} d6 {[%emt 0:00:09]} 9. g3 {[%emt 0:00:22]} Bg7 {[%emt 0:00:06]} 10. Kg2 {[%emt 0:00:04]} O-O {[%emt 0:00:08]} 11. Nf3 {[%emt 0:00:09]} Qb6 {[%emt 0:00:20]} 12. Qe2 {[%emt 0:05:20]} Na6 {[%emt 0:00:51]} 13. a4 {[%emt 0:18:10]} Rfb8 {[%emt 0:02:02]} 14. Bd2 {[%emt 0:02:30]} Nc7 {[%emt 0:01:11]} 15. Nb5 {[%emt 0:23:15]} Nxb5 {[%emt 0:04:01]} 16. axb5 {[%emt 0:01:06]} Rxa1 {[%emt 0:05:26]} 17. Rxa1 {[%emt 0:00:05]} Nd7 {[%emt 0:02:42]} 18. Bc3 {[%emt 0:04:55]} Qxb5 {[%emt 0:07:15]} 19. Qxb5 {[%emt 0:00:18]} Rxb5 {[%emt 0:00:05]} 20. Ra7 {[%emt 0:02:14]} Bxc3 {[%emt 0:02:02]} 21. bxc3 {[%emt 0:00:05]} Nf6 {[%emt 0:00:46]} 22. e5 {[%emt 0:00:23]} dxe5 {[%emt 0:03:33]} 23. Rxe7 {[%emt 0:00:41]} Nxd5 {[%emt 0:26:24]} 24. Re8+ {[%emt 0:01:12]} Kg7 {[%emt 0:02:17]} 25. c4 {[%emt 0:00:05]} Nf6 {[%emt 0:00:54]} 26. Re7 {[%emt 0:33:48]} Rb6 {[%emt 0:04:50]} 27. Ng5 {[%emt 0:00:22]} Kg8 {[%emt 0:15:40]} 28. Nxf7 {[%emt 0:00:44]} Kf8 {[%emt 0:01:39]} 29. Rc7 {[%emt 0:00:32]} e4 {[%emt 0:03:19]} 30. Ne5 {[%emt 0:00:51]} Ke8 {[%emt 0:00:05]} 31. Rxc5 {[%emt 0:01:15]} Ke7 {[%emt 0:03:03]} 32. Ra5 {[%emt 0:00:46]} Rb2 {[%emt 0:01:13]} 33. g4 {[%emt 0:03:04]} Rc2 {[%emt 0:02:54]} 34. Nc6+ {[%emt 0:01:11]} Kd7 {[%emt 0:01:17]} 35. Ra7+ {[%emt 0:01:53]} Kxc6 {[%emt 0:01:01]} 36. Ra6+ {[%emt 0:00:02]} Kc5 {[%emt 0:00:06]} 37. Rxf6 {[%emt 0:00:02]} e3 {[%emt 0:00:35]} 1/2-1/2

[Event "35th European Club Cup 2019"]
[Site "Ulcinj"]
[Date "2019.11.14"]
[Round "5.12"]
[White "Nogly, Christoph"]
[Black "Murzin, Volodar"]
[Result "1/2-1/2"]
[ECO "E70"]
[WhiteElo "2235"]
[BlackElo "2429"]
[Annotator "NA RC"]
[PlyCount "145"]
[EventDate "2019.11.10"]
[EventType "team-tourn"]
[EventCountry "MNE"]
[SourceTitle "playchess.com"]
[Source "ChessBase"]
[SourceQuality "1"]
[WhiteTeam "Berlin"]
[BlackTeam "Moscow Chess Team"]
[TimeControl "40/5400+30:1800+30"]

1. d4 {[%emt 0:00:00]} Nf6 {[%emt 0:00:00]} 2. c4 {[%emt 0:00:00]} g6 {[%emt 0:00:00]} 3. Nc3 {[%emt 0:00:00]} Bg7 {[%emt 0:00:00]} 4. e4 {[%emt 0:00:00]} d6 {[%emt 0:00:02]} 5. Bd3 {[%emt 0:00:00]} O-O {[%emt 0:00:31]} 6. Nge2 {[%emt 0:00:00]} Nc6 {[%emt 0:00:23]} 7. O-O {[%emt 0:00:12]} Nd7 {[%emt 0:00:22]} 8. Be3 {[%emt 0:01:27]} e5 {[%emt 0:00:22]} 9. d5 {[%emt 0:00:06]} Nd4 {[%emt 0:00:12]} 10. Nb5 {[%emt 0:02:12]} Nxe2+ {[%emt 0:05:59]} 11. Qxe2 {[%emt 0:00:20]} b6 {[%emt 0:04:52]} 12. Rac1 {[%emt 0:09:10]} a6 {[%emt 0:01:16]} 13. Nc3 {[%emt 0:00:06]} a5 {[%emt 0:00:07]} 14. Qd2 {[%emt 0:11:12]} Nf6 {[%emt 0:05:37]} 15. Be2 {[%emt 0:05:16]} h5 {[%emt 0:04:33]} 16. h3 {[%emt 0:12:08]} Nh7 {[%emt 0:01:30]} 17. b3 {[%emt 0:11:20]} Qe7 {[%emt 0:15:32]} 18. a3 {[%emt 0:04:52]} f5 {[%emt 0:05:12]} 19. exf5 {[%emt 0:01:37]} Bxf5 {[%emt 0:02:26]} 20. g4 {[%emt 0:07:14]} Bd7 {[%emt 0:10:54]} 21. f3 {[%emt 0:05:13]} e4 {[%emt 0:05:22]} 22. Nxe4 {[%emt 0:12:29]} hxg4 {[%emt 0:00:32]} 23. hxg4 {[%emt 0:00:10]} Bxg4 {[%emt 0:01:50]} 24. Kg2 {[%emt 0:07:38]} Rae8 {[%emt 0:03:38]} 25. Bd3 {[%emt 0:01:02]} Bf5 {[%emt 0:12:38]} 26. Rce1 {[%emt 0:02:24]} Qd7 {[%emt 0:00:55]} 27. Nf2 {[%emt 0:01:45]} Nf6 {[%emt 0:00:52]} 28. Bg5 {[%emt 0:02:53]} Nh5 {[%emt 0:01:22]} 29. Rxe8 {[%emt 0:00:38]} Rxe8 {[%emt 0:03:05]} 30. Re1 {[%emt 0:00:46]} Be5 {[%emt 0:06:29]} 31. f4 {[%emt 0:01:58]} Bf6 {[%emt 0:01:31]} 32. Bxf5 {[%emt 0:00:34]} gxf5 {[%emt 0:00:05]} 33. Rxe8+ {[%emt 0:00:17]} Qxe8 {[%emt 0:00:00]} 34. Bxf6 {[%emt 0:00:15]} Nxf6 {[%emt 0:00:06]} 35. Qd3 {[%emt 0:00:29]} Qg6+ {[%emt 0:03:12]} 36. Qg3 {[%emt 0:00:09]} Kf7 {[%emt 0:01:23]} 37. Qxg6+ {[%emt 0:00:06]} Kxg6 {[%emt 0:00:01]} 38. Kf3 {[%emt 0:00:09]} Kh5 {[%emt 0:01:31]} 39. Nh1 {[%emt 0:01:24]} Nd7 {[%emt 0:03:24]} 40. Ng3+ {[%emt 0:00:00]} Kg6 {[%emt 0:00:00]} 41. Ne2 {[%emt 0:03:00]} Nc5 {[%emt 0:01:42]} 42. Nd4 {[%emt 0:00:47]} Kf6 {[%emt 0:02:42]} 43. Ke3 {[%emt 0:00:30]} Kg6 {[%emt 0:01:19]} 44. Kd2 {[%emt 0:07:48]} Ne4+ {[%emt 0:07:21]} 45. Kc2 {[%emt 0:01:51]} Nf6 {[%emt 0:00:47]} 46. b4 {[%emt 0:02:50]} a4 {[%emt 0:03:16]} 47. Kd3 {[%emt 0:01:14]} Ne8 {[%emt 0:02:52]} 48. Ke3 {[%emt 0:03:15]} Kf6 {[%emt 0:00:25]} 49. Nb5 {[%emt 0:00:18]} Ke7 {[%emt 0:00:17]} 50. Nc3 {[%emt 0:00:09]} Nf6 {[%emt 0:00:12]} 51. Nxa4 {[%emt 0:01:28]} b5 {[%emt 0:00:12]} 52. Nc3 {[%emt 0:00:07]} bxc4 {[%emt 0:00:03]} 53. Kd4 {[%emt 0:00:22]} Kd7 {[%emt 0:00:33]} 54. Kxc4 {[%emt 0:00:12]} Nh5 {[%emt 0:00:04]} 55. Ne2 {[%emt 0:00:06]} Kc8 {[%emt 0:00:04]} 56. Nd4 {[%emt 0:10:18]} Nxf4 {[%emt 0:00:14]} 57. Nxf5 {[%emt 0:00:06]} Kb7 {[%emt 0:00:05]} 58. Ne3 {[%emt 0:00:35]} Ng6 {[%emt 0:00:29]} 59. b5 {[%emt 0:01:37]} Kb6 {[%emt 0:01:12]} 60. Kb4 {[%emt 0:00:08]} Nf4 {[%emt 0:00:25]} 61. Kc4 {[%emt 0:01:43]} Ka5 {[%emt 0:00:53]} 62. Nc2 {[%emt 0:01:07]} Ka4 {[%emt 0:01:26]} 63. Nd4 {[%emt 0:00:47]} Ng6 {[%emt 0:01:38]} 64. Ne6 {[%emt 0:01:50]} Ne5+ {[%emt 0:00:13]} 65. Kd4 {[%emt 0:00:23]} Kxb5 {[%emt 0:00:19]} 66. Nxc7+ {[%emt 0:00:22]} Ka4 {[%emt 0:00:08]} 67. Ne8 {[%emt 0:00:37]} Nf7 {[%emt 0:00:22]} 68. Ke4 {[%emt 0:00:29]} Kxa3 {[%emt 0:00:10]} 69. Kf5 {[%emt 0:00:04]} Kb4 {[%emt 0:00:09]} 70. Ke6 {[%emt 0:00:21]} Kc5 {[%emt 0:00:13]} 71. Nf6 {[%emt 0:01:38]} Ng5+ {[%emt 0:00:07]} 72. Ke7 {[%emt 0:01:03]} Nh7 {[%emt 0:00:22]} 73. Ne4+ {[%emt 0:00:18]} 1/2-1/2

[Event "35th European Club Cup 2019"]
[Site "Ulcinj"]
[Date "2019.11.14"]
[Round "5.12"]
[White "Richard, Emma"]
[Black "Magat, Jozef"]
[Result "1/2-1/2"]
[ECO "C04"]
[WhiteElo "2157"]
[BlackElo "2105"]
[Annotator "NA"]
[PlyCount "89"]
[EventDate "2019.11.10"]
[EventType "team-tourn"]
[EventCountry "MNE"]
[SourceTitle "playchess.com"]
[Source "ChessBase"]
[SourceQuality "1"]
[WhiteTeam "Mulhouse"]
[BlackTeam "Inbest Dunajov"]
[TimeControl "40/5400+30:1800+30"]

1. e4 {[%emt 0:00:00]} e6 {[%emt 0:00:00]} 2. d4 {[%emt 0:00:03]} d5 {[%emt 0:00:16]} 3. Nd2 {[%emt 0:00:30]} Nc6 {[%emt 0:00:30]} 4. Ngf3 {[%emt 0:00:30]} Nf6 {[%emt 0:00:30]} 5. e5 {[%emt 0:00:30]} Nd7 {[%emt 0:00:30]} 6. c3 {[%emt 0:07:45]} f6 7. exf6 Qxf6 {[%emt 0:00:42]} 8. Bb5 {[%emt 0:01:40]} Bd6 {[%emt 0:00:21]} 9. Nf1 {[%emt 0:01:18]} O-O {[%emt 0:01:04]} 10. Bg5 {[%emt 0:10:38]} Qf7 {[%emt 0:01:03]} 11. Bh4 {[%emt 0:02:58]} h6 {[%emt 0:01:37]} 12. Ne3 {[%emt 0:05:41]} a6 {[%emt 0:01:33]} 13. Ba4 {[%emt 0:02:13]} b5 {[%emt 0:04:19]} 14. Bb3 {[%emt 0:00:30]} Na5 {[%emt 0:00:30]} 15. Bc2 {[%emt 0:06:54]} Nc4 {[%emt 0:17:58]} 16. O-O {[%emt 0:06:54]} Nf6 {[%emt 0:24:29]} 17. Nxc4 {[%emt 0:08:30]} bxc4 {[%emt 0:04:59]} 18. Bg3 {[%emt 0:04:17]} Qh5 {[%emt 0:08:37]} 19. Ne5 {[%emt 0:03:45]} Qxd1 {[%emt 0:01:21]} 20. Rfxd1 {[%emt 0:01:22]} Nh5 {[%emt 0:00:51]} 21. Ng6 {[%emt 0:00:30]} Rf7 {[%emt 0:02:29]} 22. Re1 {[%emt 0:05:43]} Nxg3 {[%emt 0:01:57]} 23. hxg3 {[%emt 0:01:36]} c5 {[%emt 0:01:46]} 24. Ne5 {[%emt 0:00:30]} Rf8 {[%emt 0:00:30]} 25. b3 {[%emt 0:03:51]} cxb3 {[%emt 0:04:30]} 26. axb3 {[%emt 0:00:22]} cxd4 {[%emt 0:02:05]} 27. cxd4 {[%emt 0:00:06]} Rb8 {[%emt 0:02:39]} 28. Ra4 {[%emt 0:05:35]} Rb4 {[%emt 0:02:41]} 29. Rxb4 {[%emt 0:08:11]} Bxb4 {[%emt 0:00:11]} 30. Rc1 {[%emt 0:00:00]} Ba3 {[%emt 0:03:15]} 31. Rb1 {[%emt 0:02:06]} Bb7 {[%emt 0:02:21]} 32. b4 {[%emt 0:02:02]} Rc8 {[%emt 0:01:18]} 33. Bg6 {[%emt 0:00:30]} Rc1+ {[%emt 0:04:25]} 34. Rxc1 {[%emt 0:00:06]} Bxc1 {[%emt 0:00:05]} 35. Bf7+ {[%emt 0:00:21]} Kf8 {[%emt 0:00:08]} 36. Bxe6 {[%emt 0:00:03]} Ke7 {[%emt 0:00:46]} 37. Nd3 {[%emt 0:01:52]} Bd2 {[%emt 0:02:02]} 38. Bg4 {[%emt 0:01:18]} Bc6 {[%emt 0:02:35]} 39. Bc8 {[%emt 0:00:00]} a5 {[%emt 0:00:00]} 40. bxa5 {[%emt 0:00:00]} Bxa5 {[%emt 0:00:00]} 41. Ne5 {[%emt 0:11:24]} Bb5 {[%emt 0:03:21]} 42. Ng6+ {[%emt 0:11:29]} Kd6 {[%emt 0:09:10]} 43. Nh4 {[%emt 0:00:30]} Bd3 {[%emt 0:01:49]} 44. Bf5 {[%emt 0:04:00]} Be2 {[%emt 0:01:18]} 45. Bc2 {[%emt 0:05:43] Ke5} 1/2-1/2

[Event "35th European Club Cup 2019"]
[Site "Ulcinj"]
[Date "2019.11.14"]
[Round "5.12"]
[White "Misini, Burhanudin"]
[Black "Van Ketel, Raoul"]
[Result "0-1"]
[ECO "C03"]
[WhiteElo "1991"]
[BlackElo "2212"]
[Annotator "NA"]
[PlyCount "122"]
[EventDate "2019.11.10"]
[EventType "team-tourn"]
[EventCountry "MNE"]
[SourceTitle "playchess.com"]
[Source "ChessBase"]
[SourceQuality "1"]
[WhiteTeam "Drejtesia"]
[BlackTeam "LSG IntelliMagic"]
[TimeControl "40/5400+30:1800+30"]

1. e4 {[%emt 0:00:00]} e6 {[%emt 0:00:00]} 2. d4 {[%emt 0:00:00]} d5 {[%emt 0:00:00]} 3. Nd2 {[%emt 0:00:54]} Be7 {[%emt 0:00:00]} 4. c3 {[%emt 0:01:22]} c5 {[%emt 0:02:14]} 5. e5 {[%emt 0:00:41]} Nc6 {[%emt 0:01:31]} 6. Ngf3 {[%emt 0:08:43]} f6 {[%emt 0:14:31]} 7. exf6 {[%emt 0:01:56]} Nxf6 {[%emt 0:00:21]} 8. Nb3 {[%emt 0:05:24]} c4 {[%emt 0:09:53]} 9. Nbd2 {[%emt 0:00:08]} Bd6 {[%emt 0:00:22]} 10. Be2 {[%emt 0:00:45]} O-O {[%emt 0:11:21]} 11. Nf1 {[%emt 0:05:50]} e5 {[%emt 0:05:48]} 12. dxe5 {[%emt 0:00:35]} Nxe5 {[%emt 0:00:09]} 13. Ne3 {[%emt 0:00:20]} Re8 {[%emt 0:14:11]} 14. Nxe5 {[%emt 0:04:23]} Bxe5 {[%emt 0:01:35]} 15. O-O {[%emt 0:01:21]} Be6 {[%emt 0:02:20]} 16. Bf3 {[%emt 0:01:32]} Qd7 {[%emt 0:07:23]} 17. Nc2 {[%emt 0:10:28]} Bf5 {[%emt 0:00:48]} 18. Bg5 {[%emt 0:10:27]} Bd3 {[%emt 0:09:42]} 19. Bxf6 {[%emt 0:02:41]} Bxf6 {[%emt 0:00:06]} 20. Re1 {[%emt 0:00:15]} Qb5 {[%emt 0:11:05]} 21. Nb4 {[%emt 0:03:35]} d4 {[%emt 0:00:19]} 22. Rxe8+ {[%emt 0:01:31]} Rxe8 {[%emt 0:00:16]} 23. a4 {[%emt 0:00:09]} Qf5 {[%emt 0:02:02]} 24. Bg4 {[%emt 0:14:48]} Qg5 {[%emt 0:00:13]} 25. Rc1 {[%emt 0:13:58]} dxc3 {[%emt 0:00:54]} 26. bxc3 {[%emt 0:00:04]} b6 {[%emt 0:00:30]} 27. Bf3 {[%emt 0:00:30]} Rd8 {[%emt 0:03:13]} 28. Qe1 {[%emt 0:00:53]} a5 {[%emt 0:01:26]} 29. Nd5 {[%emt 0:01:21]} Be5 {[%emt 0:01:12]} 30. Qe3 {[%emt 0:02:24]} Qxe3 {[%emt 0:00:35]} 31. fxe3 Rd6 32. Kf2 {[%emt 0:04:39]} g6 {[%emt 0:00:54]} 33. g3 {[%emt 0:00:48]} Kg7 {[%emt 0:00:08]} 34. e4 {[%emt 0:01:58]} Re6 {[%emt 0:01:06]} 35. Ke3 {[%emt 0:00:23]} Bd6 {[%emt 0:00:28]} 36. Nf4 {[%emt 0:01:34]} Bc5+ {[%emt 0:00:08]} 37. Kd2 {[%emt 0:00:31]} Rd6 {[%emt 0:01:00]} 38. e5 {[%emt 0:00:32]} Rd7 {[%emt 0:00:23]} 39. Ne6+ {[%emt 0:00:58]} Kf7 {[%emt 0:00:40]} 40. Nxc5 {[%emt 0:00:00]} bxc5 {[%emt 0:00:00]} 41. Bc6 {[%emt 0:09:36]} Rd8 {[%emt 0:01:11]} 42. Ke3 {[%emt 0:00:11]} Ke6 {[%emt 0:01:46]} 43. Kf4 {[%emt 0:03:48]} h6 44. Be4 {[%emt 0:01:05]} g5+ {[%emt 0:11:19]} 45. Ke3 Kxe5 {[%emt 0:09:34]} 46. Bc6 {[%emt 0:01:26]} Rd6 {[%emt 0:01:11]} 47. Bg2 {[%emt 0:00:35]} g4 {[%emt 0:02:44]} 48. Re1 {[%emt 0:02:59]} Rf6 {[%emt 0:01:12]} 49. Rc1 {[%emt 0:02:42]} Rb6 {[%emt 0:00:17]} 50. Bf1 {[%emt 0:01:54]} Bxf1 {[%emt 0:02:11]} 51. Rxf1 {[%emt 0:00:03]} Rb3 {[%emt 0:00:06]} 52. Kd2 {[%emt 0:00:15]} Rb2+ {[%emt 0:00:06]} 53. Kc1 {[%emt 0:00:07]} Rxh2 54. Rf4 {[%emt 0:00:09]} h5 {[%emt 0:00:55]} 55. Rxc4 {[%emt 0:00:09]} Kd5 {[%emt 0:00:32]} 56. Rf4 {[%emt 0:00:10]} Rg2 {[%emt 0:00:43]} 57. Rf5+ {[%emt 0:01:38]} Kc4 {[%emt 0:00:04]} 58. Rxh5 {[%emt 0:00:13]} Rxg3 {[%emt 0:00:05]} 59. Kb2 {[%emt 0:00:15]} Rg2+ {[%emt 0:00:55]} 60. Ka3 {[%emt 0:00:13]} Rc2 {[%emt 0:00:41]} 61. Rh3 Rxc3+ 0-1

[Event "35th European Club Cup 2019"]
[Site "Ulcinj"]
[Date "2019.11.14"]
[Round "5.13"]
[White "Noe, Christopher"]
[Black "Cernousek, Lukas"]
[Result "1-0"]
[ECO "D04"]
[WhiteElo "2533"]
[BlackElo "2461"]
[Annotator "ChessBase"]
[PlyCount "65"]
[EventDate "2019.11.10"]
[EventType "team-tourn"]
[EventCountry "MNE"]
[SourceTitle "playchess.com"]
[Source "ChessBase"]
[SourceQuality "1"]
[WhiteTeam "De Sprenger Echternach"]
[BlackTeam "Unichess"]
[TimeControl "40/5400+30:1800+30"]

1. d4 d5 2. e3 Nf6 3. Nf3 c5 4. c4 cxd4 5. exd4 g6 6. Nc3 Bg7 7. cxd5 Nxd5 8. Bb5+ Nc6 9. O-O O-O 10. h3 Be6 11. Bxc6 bxc6 12. Na4 Nc7 13. Nc5 Bc4 14. Re1 Ne6 15. Qc2 Nxc5 16. Qxc4 Ne6 17. Be3 Qb6 18. b3 Qb5 19. Rac1 Qxc4 20. Rxc4 Rac8 21. Ra4 Rc7 22. Rc1 Rd8 23. Kf1 Rd5 24. Rcc4 Kf8 25. Ra6 Rd6 26. d5 cxd5 27. Rxc7 Nxc7 28. Rxa7 Rc6 29. b4 e5 30. a4 d4 31. b5 Nxb5 32. axb5 Rc5 33. b6 1-0

[Event "35th European Club Cup 2019"]
[Site "Ulcinj"]
[Date "2019.11.14"]
[Round "5.13"]
[White "Draskovic, Luka"]
[Black "Karttunen, Mika"]
[Result "1/2-1/2"]
[ECO "E62"]
[WhiteElo "2460"]
[BlackElo "2477"]
[Annotator "ChessBase"]
[PlyCount "72"]
[EventDate "2019.11.10"]
[EventType "team-tourn"]
[EventCountry "MNE"]
[SourceTitle "playchess.com"]
[Source "ChessBase"]
[SourceQuality "1"]
[WhiteTeam "Crnogorac"]
[BlackTeam "Tammer-Shakki"]
[TimeControl "40/5400+30:1800+30"]

1. c4 {[%emt 0:00:00]} Nf6 {[%emt 0:00:00]} 2. Nf3 {[%emt 0:00:35]} g6 {[%emt 0:00:00]} 3. g3 {[%emt 0:00:22]} Bg7 {[%emt 0:00:07]} 4. Bg2 {[%emt 0:00:05]} O-O {[%emt 0:00:07]} 5. O-O {[%emt 0:00:37]} d6 {[%emt 0:03:05]} 6. d4 {[%emt 0:00:25]} c6 {[%emt 0:00:58]} 7. Nc3 {[%emt 0:00:16]} Bf5 {[%emt 0:00:18]} 8. Bg5 {[%emt 0:04:16]} Ne4 {[%emt 0:02:25]} 9. Nxe4 {[%emt 0:00:06]} Bxe4 {[%emt 0:00:05]} 10. Qd2 {[%emt 0:00:04]} Re8 {[%emt 0:06:31]} 11. Bh6 {[%emt 0:00:35]} Nd7 {[%emt 0:05:05]} 12. Bxg7 {[%emt 0:00:42]} Kxg7 {[%emt 0:00:11]} 13. Qc3 {[%emt 0:13:55]} Nf6 {[%emt 0:01:18]} 14. Bh3 {[%emt 0:04:50]} Bxf3 {[%emt 0:03:57]} 15. Qxf3 {[%emt 0:00:09]} Qb6 {[%emt 0:03:41]} 16. Qc3 {[%emt 0:04:11]} e5 {[%emt 0:17:11]} 17. dxe5 {[%emt 0:01:22]} dxe5 {[%emt 0:00:47]} 18. Rad1 {[%emt 0:08:16]} a5 {[%emt 0:07:32]} 19. a3 {[%emt 0:06:42]} Ne4 {[%emt 0:01:34]} 20. Qd3 {[%emt 0:09:58]} Nf6 {[%emt 0:03:03]} 21. Qc3 {[%emt 0:01:26]} Qc5 {[%emt 0:03:41]} 22. Bg2 {[%emt 0:09:05]} Rad8 {[%emt 0:02:08]} 23. b4 {[%emt 0:04:31]} axb4 {[%emt 0:00:09]} 24. axb4 {[%emt 0:00:04]} Qe7 {[%emt 0:02:08]} 25. Rd3 {[%emt 0:04:19]} Rxd3 {[%emt 0:01:27]} 26. exd3 {[%emt 0:00:05]} Qd6 {[%emt 0:09:59]} 27. Re1 {[%emt 0:01:39]} Rd8 {[%emt 0:02:38]} 28. Rxe5 {[%emt 0:08:38]} Qxd3 {[%emt 0:00:08]} 29. Qxd3 {[%emt 0:00:20]} Rxd3 {[%emt 0:00:30]} 30. Re7 {[%emt 0:03:19]} Rd1+ {[%emt 0:00:19]} 31. Bf1 {[%emt 0:00:05]} Nd7 {[%emt 0:00:32]} 32. Kg2 {[%emt 0:00:33]} Kf8 {[%emt 0:00:15]} 33. Re3 {[%emt 0:00:44]} Rb1 {[%emt 0:03:22]} 34. b5 {[%emt 0:00:16]} Nb6 {[%emt 0:01:46]} 35. Ra3 {[%emt 0:07:49]} cxb5 {[%emt 0:03:09]} 36. cxb5 {[%emt 0:00:06]} Re1 {[%emt 0:05:00]} 1/2-1/2

[Event "35th European Club Cup 2019"]
[Site "Ulcinj"]
[Date "2019.11.14"]
[Round "5.15"]
[White "Hammes, Michael"]
[Black "Vrbata, Zbynek"]
[Result "1/2-1/2"]
[ECO "E91"]
[WhiteElo "2348"]
[BlackElo "2353"]
[Annotator "NA"]
[PlyCount "61"]
[EventDate "2019.11.10"]
[EventType "team-tourn"]
[EventCountry "MNE"]
[SourceTitle "playchess.com"]
[Source "ChessBase"]
[SourceQuality "1"]
[WhiteTeam "De Sprenger Echternach"]
[BlackTeam "Unichess"]
[TimeControl "40/5400+30:1800+30"]

1. d4 {[%emt 0:00:00]} Nf6 {[%emt 0:00:00]} 2. c4 {[%emt 0:00:00]} g6 {[%emt 0:00:00]} 3. Nc3 {[%emt 0:00:00]} Bg7 {[%emt 0:00:00]} 4. e4 {[%emt 0:00:06]} O-O {[%emt 0:00:04]} 5. Nf3 {[%emt 0:00:14]} d6 {[%emt 0:00:14]} 6. Be2 {[%emt 0:00:14]} Nbd7 {[%emt 0:00:08]} 7. Be3 {[%emt 0:03:12]} e5 {[%emt 0:04:12]} 8. d5 {[%emt 0:00:56]} Nc5 {[%emt 0:01:45]} 9. Nd2 {[%emt 0:01:01]} a5 {[%emt 0:00:47]} 10. Qc2 {[%emt 0:04:23]} Ng4 {[%emt 0:05:55]} 11. Bxg4 {[%emt 0:07:35]} Bxg4 {[%emt 0:00:43]} 12. h3 {[%emt 0:01:12]} Bd7 {[%emt 0:00:20]} 13. g4 f5 14. gxf5 {[%emt 0:01:10]} gxf5 {[%emt 0:13:36]} 15. O-O-O {[%emt 0:00:59]} b6 {[%emt 0:02:21]} 16. Rdg1 {[%emt 0:06:59]} Kh8 {[%emt 0:04:27]} 17. h4 {[%emt 0:08:21]} Qe7 {[%emt 0:16:58]} 18. f3 {[%emt 0:12:18]} Bf6 {[%emt 0:11:18]} 19. Nb5 {[%emt 0:10:06]} Na6 {[%emt 0:03:40]} 20. a3 {[%emt 0:15:48]} f4 {[%emt 0:06:45]} 21. Bf2 {[%emt 0:03:58]} Rg8 {[%emt 0:01:24]} 22. Qd1 {[%emt 0:00:07]} Rxg1 {[%emt 0:00:55]} 23. Qxg1 {[%emt 0:00:09]} Rg8 {[%emt 0:04:59]} 24. Qf1 {[%emt 0:02:18]} Be8 {[%emt 0:05:22]} 25. Kc2 {[%emt 0:00:27]} Bd7 {[%emt 0:00:34]} 26. b3 {[%emt 0:02:09]} Rc8 {[%emt 0:01:06]} 27. Na7 {[%emt 0:00:08]} Ra8 {[%emt 0:00:13]} 28. Nb5 {[%emt 0:04:56]} Rc8 {[%emt 0:01:10]} 29. Na7 {[%emt 0:00:41]} Ra8 {[%emt 0:01:24]} 30. Nb5 {[%emt 0:01:14]} Rc8 {[%emt 0:00:13]} 31. Na7 1/2-1/2